bitfinex/quotes_ETHUSD_20220103
["timestamp","ask_amount","ask_price","bid_price","bid_amount"]
[1641227490140,0.0073895,3745.8,3745.7,7.85752621]
[1641227490141,8.95e-05,3745.8,3745.7,7.85752621]
[1641227490343,8.95e-05,3745.8,3745.7,12.0584]
[1641227490540,8.95e-05,3745.8,3745.7,11.19195905]
[1641227490947,2.7000895,3745.8,3745.7,11.19195905]
[1641227491140,0.06413359,3746.2,3745.8,1.1224562]
[1641227491341,0.06413359,3746.2,3746.0,0.6671]
[1641227491541,3.359e-05,3746.2,3746.0,0.6671]
[1641227491739,3.359e-05,3746.2,3746.1,14.0389]
[1641227491940,3.359e-05,3746.2,3746.1,5.3389]
[1641227493198,16.30728,3747.1,3746.1,5.3389]
[1641227493598,0.06413298,3746.6,3746.1,5.3389]
[1641227493799,0.06413298,3746.6,3746.1,6.64124679]
[1641227494002,0.0022737,3746.5,3746.1,6.64124679]
[1641227494405,0.00170528,3746.4,3746.1,6.64124679]
[1641227494901,0.00113685,3746.3,3746.1,6.64124679]
[1641227495306,0.0022737,3746.5,3746.1,6.64124679]
[1641227495609,0.00170528,3746.4,3746.1,6.64124679]
[1641227495809,0.00170528,3746.4,3746.1,5.3389]
[1641227496010,0.06413298,3746.6,3746.1,5.3389]
[1641227496011,0.00113685,3746.3,3746.1,5.3389]
[1641227496408,15.744,3746.4,3746.1,5.3389]
[1641227496644,1.4008,3746.3,3746.1,5.3389]
[1641227496838,15.64,3746.2,3746.1,5.3389]
[1641227498842,15.64,3746.2,3746.1,5.34785478]
[1641227499243,16.64,3746.2,3746.1,5.34785478]
[1641227499446,17.0718,3746.2,3746.1,5.34785478]
[1641227499744,18.01771317,3746.2,3746.1,5.34337739]
[1641227499950,18.31291317,3746.2,3746.1,0.00160739]
[1641227500146,18.00571317,3746.2,3746.1,0.00160739]
[1641227500393,16.99931317,3746.2,3746.1,0.00160739]
[1641227500591,16.89131317,3746.2,3746.1,0.00160739]
[1641227500796,15.959,3746.2,3746.1,0.00160739]
[1641227501594,4.4,3746.1,3746.0,0.105359]
[1641227501795,15.64,3745.8,3745.7,0.06413298]
[1641227501997,15.94,3745.8,3745.7,0.06413298]
[1641227502196,15.94,3745.8,3745.7,0.06640667]
[1641227503197,15.94,3745.8,3745.7,0.00227369]
[1641227503400,18.93559488,3745.8,3745.7,0.00227369]
[1641227503596,18.93559488,3745.8,3744.9,0.00682108]
[1641227503597,3.32660118,3745.8,3744.9,0.00682108]
[1641227503799,3.02660118,3745.8,3745.3,0.06436611]
[1641227504246,3.02660118,3745.8,3745.4,0.00397896]
[1641227504644,2.99559488,3745.7,3745.4,1.21829341]
[1641227505044,3.29559488,3745.7,3745.5,0.00341054]
[1641227505248,0.3,3745.7,3745.5,0.00341054]
[1641227505644,0.0310063,3745.8,3745.5,0.00341054]
[1641227509800,0.0310063,3745.8,3745.6,0.00354189]
[1641227511502,0.0310063,3745.8,3745.7,5.3395]
[1641227511946,0.00113685,3746.3,3745.7,2.9937]
[1641227512144,0.00113685,3746.3,3745.7,3.2937]
[1641227512343,0.00113685,3746.3,3745.8,0.00170527]
[1641227512547,0.00113685,3746.3,3745.9,8.323]
[1641227512945,0.00113685,3746.3,3746.0,1.41807468]
[1641227513244,0.00113685,3746.3,3746.1,8.3227]
[1641227520545,0.00113685,3746.3,3746.2,8.70495388]
[1641227520742,0.00113685,3746.3,3746.2,17.02745388]
[1641227524509,0.00113685,3746.3,3746.2,17.05833459]
[1641227524910,3.685e-05,3746.3,3746.2,17.35833459]
[1641227525211,3.685e-05,3746.3,3746.2,17.97013459]
[1641227525610,0.06436548,3747.7,3747.0,0.66699]
[1641227525812,0.06436548,3747.7,3747.1,8.3213]
[1641227526012,0.00738951,3747.6,3747.1,8.3213]
[1641227526209,0.00738951,3747.6,3747.2,1.2643096]
[1641227526409,0.00682108,3747.5,3747.3,8.002]
[1641227526852,5.266e-05,3747.4,3747.3,9.00207008]
[1641227527042,5.266e-05,3747.4,3747.3,14.25207008]
[1641227527242,6.12,3748.9,3747.4,8.65]
[1641227527447,6.11493893,3748.9,3747.5,8.0017]
[1641227527644,6.11493893,3748.9,3747.5,8.96857]
[1641227527645,0.00568423,3748.6,3747.5,8.96857]
[1641227527845,0.01436321,3747.9,3747.5,8.96857]
[1641227528044,0.01436321,3747.9,3747.7,2.0006117]
[1641227528246,0.00113684,3747.8,3747.7,2.0006117]
[1641227528444,0.00113684,3747.8,3747.7,7.6371117]
[1641227528843,0.00113684,3747.8,3747.7,7.67560585]
[1641227529046,21.76,3749.4,3747.8,8.7]
[1641227529047,6.12,3749.4,3747.8,8.7]
[1641227529252,6.12,3749.4,3748.5,0.6668219]
[1641227529450,6.12,3749.4,3748.4,0.66683]
[1641227529451,0.00738951,3749.1,3749.0,1.29144019]
[1641227529648,0.00738951,3749.1,3749.0,6.62624019]
[1641227530507,0.00738951,3749.1,3749.0,6.92624019]
[1641227530508,8.951e-05,3749.1,3749.0,6.92624019]
[1641227530704,3.37053621,3750.2,3749.1,8.7]
[1641227530899,3.37053621,3750.2,3749.2,5.6535]
[1641227531103,3.37053621,3750.2,3749.3,2.51154248]
[1641227531303,3.37053621,3750.5,3749.4,5.6532]
[1641227531504,3.37053621,3750.5,3749.9,0.66652]
[1641227531704,0.00682108,3750.3,3750.1,0.666509]
[1641227531904,0.00682108,3750.3,3750.2,6.65751837]
[1641227532106,3.37053621,3750.5,3750.2,6.65751837]
[1641227532503,7.73569086,3750.4,3750.2,5.333]
[1641227532903,6.12,3750.4,3750.2,5.333]
[1641227533607,15.64,3750.3,3750.2,5.333]
[1641227533904,15.64,3750.3,3750.2,2.665]
[1641227534345,15.64,3750.3,3750.2,2.015]
[1641227535149,21.90165581,3750.3,3750.2,2.015]
[1641227536053,18.5311196,3750.3,3750.2,2.015]
[1641227538891,2.9911196,3750.3,3750.2,2.015]
[1641227540294,2.9911196,3750.3,3750.2,3.14885097]
[1641227541295,2.9911196,3750.9,3750.2,3.14885097]
[1641227541497,2.9911196,3750.9,3750.8,1.27852382]
[1641227541741,0.01023162,3750.9,3750.8,1.27852382]
[1641227542139,0.06435752,3751.0,3750.8,1.27852382]
[1641227542140,0.02458914,3751.0,3750.8,1.27852382]
[1641227542845,0.02458914,3751.0,3750.9,0.00440227]
[1641227543240,1.61569086,3751.4,3750.9,0.00440227]
[1641227543440,3.19249618,3751.4,3750.9,0.00440227]
[1641227543646,0.00227369,3751.3,3750.9,0.00440227]
[1641227544045,3.19249618,3751.4,3750.9,0.00440227]
[1641227544046,0.00170527,3751.2,3750.9,0.00440227]
[1641227544445,0.00113685,3751.1,3750.9,0.00440227]
[1641227544847,0.00284212,3751.4,3750.9,0.00440227]
[1641227545146,0.00341054,3751.5,3750.9,0.00440227]
[1641227545399,15.64341054,3751.5,3750.9,0.00440227]
[1641227545599,0.00284212,3751.4,3751.0,0.666407]
[1641227546604,3.1953383,3751.4,3751.0,0.966407]
[1641227547205,3.1953383,3751.4,3751.0,0.3]
[1641227547610,3.1953383,3751.4,3750.9,0.00440227]
[1641227547808,0.00284212,3751.4,3750.9,0.00440227]
[1641227548007,0.00284212,3751.4,3751.0,8.6499]
[1641227548207,0.00284212,3751.4,3751.0,9.61625]
[1641227548407,0.00284212,3751.4,3751.1,1.3326275]
[1641227548608,0.00284212,3751.4,3751.2,8.6496]
[1641227549453,0.00284212,3751.4,3751.2,9.3159]
[1641227549657,0.00284212,3751.4,3751.2,10.9485474]
[1641227550454,0.00284212,3751.4,3751.2,11.29892436]
[1641227550653,0.00284212,3751.4,3751.2,11.2675474]
[1641227551055,3.19249618,3752.1,3751.7,0.66615]
[1641227551253,3.19249618,3752.1,3751.8,8.6488]
[1641227551455,0.00341054,3752.0,3751.9,5.05]
[1641227551655,0.00341054,3752.0,3751.9,13.6986]
[1641227551856,0.00341054,3752.0,3751.9,13.9986]
[1641227552056,0.00341054,3752.0,3751.9,15.04606709]
[1641227552463,0.00341054,3752.0,3751.9,9.99606709]
[1641227553296,0.00341054,3752.0,3751.9,9.69606709]
[1641227553498,0.00341054,3752.0,3751.9,9.99606709]
[1641227553698,0.06405856,3752.7,3752.0,8.7]
[1641227553898,0.06405856,3752.7,3752.5,0.66604]
[1641227554099,0.00341054,3752.6,3752.5,0.66604]
[1641227554297,0.00341054,3752.6,3752.5,5.99574]
[1641227554498,7.73569086,3753.2,3752.5,5.99574]
[1641227554499,17.22315996,3753.2,3752.5,5.99574]
[1641227554699,17.22315996,3753.2,3752.5,5.3297]
[1641227554899,0.00284212,3753.1,3752.5,5.3297]
[1641227555297,0.00227369,3753.0,3752.5,5.3297]
[1641227555698,0.01273781,3752.7,3752.5,5.3297]
[1641227556298,9.4,3752.6,3752.5,5.3297]
[1641227556497,9.7,3752.6,3752.5,5.3297]
[1641227556744,1.4184,3752.6,3752.5,5.3297]
[1641227556946,2.4184,3752.6,3752.5,5.3297]
[1641227557146,1.4112,3752.6,3752.5,1.71768634]
[1641227557346,18.052,3752.6,3752.5,1.71768634]
[1641227557548,18.0504,3752.6,3752.5,1.71768634]
[1641227557754,17.052,3752.6,3752.5,1.71768634]
[1641227557950,17.0536,3752.6,3752.5,1.71768634]
[1641227558150,17.0528,3752.6,3752.5,1.71768634]
[1641227558549,23.02670484,3752.6,3752.5,1.71768634]
[1641227558750,24.02590484,3752.6,3752.5,1.71768634]
[1641227558953,24.02830484,3752.6,3752.5,1.71768634]
[1641227559148,24.02590484,3752.6,3752.5,1.71768634]
[1641227559353,22.01950484,3752.6,3752.5,1.71768634]
[1641227559752,22.01790484,3752.6,3752.5,1.71768634]
[1641227559955,22.02110484,3752.6,3752.5,1.71768634]
[1641227560155,22.02030484,3752.6,3752.5,1.71768634]
[1641227560394,22.01790484,3752.6,3752.5,1.71768634]
[1641227560996,21.91390484,3752.6,3752.5,1.71768634]
[1641227561899,22.01470484,3752.6,3752.5,1.71768634]
[1641227562102,21.61390484,3752.6,3752.5,1.71768634]
[1641227562300,5.97390484,3752.6,3752.5,1.71768634]
[1641227563099,21.61390484,3752.6,3752.5,1.71768634]
[1641227563503,21.91390484,3752.6,3752.5,1.71768634]
[1641227563900,22.02110484,3752.6,3752.5,1.71768634]
[1641227564165,23.02190484,3752.6,3752.5,1.71768634]
[1641227564361,25.1112346,3752.6,3752.5,1.71768634]
[1641227564564,25.2160346,3752.6,3752.5,1.72189317]
[1641227564761,25.1112346,3752.6,3752.5,1.72189317]
[1641227565961,25.2120346,3752.6,3752.5,1.72189317]
[1641227566162,25.2112346,3752.6,3752.5,1.72189317]
[1641227566361,22.01390484,3752.6,3752.5,1.72189317]
[1641227566762,21.96390484,3752.6,3752.5,1.72189317]
[1641227567363,21.86390484,3752.6,3752.5,1.72189317]
[1641227567994,21.96470484,3752.6,3752.5,1.72189317]
[1641227568196,25.0612346,3752.6,3752.5,1.72189317]
[1641227569095,21.86390484,3752.6,3752.5,1.72189317]
[1641227570302,2.66775369,3753.0,3752.5,1.72189317]
[1641227570303,0.34277279,3754.2,3752.7,8.7]
[1641227570501,7.99332439,3755.1,3752.7,8.7]
[1641227570502,7.99332439,3755.1,3754.6,0.68146941]
[1641227570705,7.99332439,3755.1,3755.0,0.01243674]
[1641227571002,8.00526129,3755.1,3755.0,0.01243674]
[1641227571201,8.00526129,3755.1,3755.0,8.74436262]
[1641227571405,8.00526129,3755.1,3755.0,9.06336262]
[1641227571651,1.01235,3754.8,3754.6,0.74552122]
[1641227571852,1.02463113,3754.8,3754.6,0.74552122]
[1641227572050,8.7096632,3754.7,3754.6,0.74552122]
[1641227572250,1.1172129,3754.7,3754.6,0.74552122]
[1641227573256,1.1172129,3754.7,3754.6,0.68146941]
[1641227574157,1.4172129,3754.7,3754.6,0.68146941]
[1641227574355,1.1172129,3754.7,3754.6,1.34733941]
[1641227574756,0.0096632,3754.7,3754.6,1.34733941]
[1641227575057,0.0096632,3754.7,3754.6,0.68146941]
[1641227575707,0.0096632,3754.7,3754.6,0.68542197]
[1641227578514,1.2720132,3754.8,3754.6,0.68542197]
[1641227579160,16.9120132,3754.8,3754.6,0.79078097]
[1641227579562,1.2720132,3754.8,3754.6,0.79078097]
[1641227580665,16.9120132,3754.8,3754.6,0.79078097]
[1641227582566,0.09019,3754.7,3754.6,0.79078097]
[1641227583295,0.04019,3754.7,3754.6,0.79078097]
[1641227583900,0.04019,3754.7,3754.3,1.3318007]
[1641227583901,0.68146941,3754.5,3754.3,1.3318007]
[1641227584102,15.64,3754.3,3753.8,1.80585469]
[1641227584699,2.40567562,3754.2,3753.8,1.80585469]
[1641227584899,15.64,3754.3,3753.3,5.70035469]
[1641227585101,0.69387868,3754.5,3753.7,1.3320189]
[1641227585102,0.3,3754.2,3753.7,1.3320189]
[1641227585300,0.68146941,3754.5,3753.7,1.3320189]
[1641227586101,15.65046021,3754.4,3753.7,1.3320189]
[1641227586305,15.64,3754.2,3753.7,1.3320189]
[1641227586669,0.31046021,3754.4,3753.7,1.3320189]
[1641227586858,0.31046021,3754.4,3753.8,0.00716922]
[1641227586859,0.3,3754.1,3753.8,0.00716922]
[1641227587056,0.31046021,3754.4,3753.8,0.00716922]
[1641227587255,0.01046021,3754.4,3753.9,0.00454739]
[1641227587456,1.39389466,3754.3,3753.9,0.00454739]
[1641227587658,2.45669443,3754.2,3753.9,0.00454739]
[1641227587857,16.30612,3754.2,3753.9,0.00454739]
[1641227588057,1.0,3754.1,3753.9,0.00454739]
[1641227588656,16.30612,3754.2,3753.9,0.00454739]
[1641227588960,0.66612,3754.2,3753.9,0.00454739]
[1641227589160,0.96612,3754.2,3753.9,0.00454739]
[1641227589367,1.78930306,3754.1,3753.9,0.00454739]
[1641227589963,4.21797556,3754.1,3753.9,0.00454739]
[1641227590164,1.78930306,3754.1,3753.9,0.00454739]
[1641227590407,2.44233175,3754.1,3753.9,0.00454739]
[1641227590607,0.96612,3754.2,3753.9,0.00454739]
[1641227590608,8.39826803,3754.0,3753.9,0.00454739]
[1641227590906,21.89,3754.0,3753.9,0.00454739]
[1641227591310,22.89842349,3754.0,3753.9,1.8932002]
[1641227591710,22.90888411,3754.0,3753.9,1.8932002]
[1641227591912,16.95888411,3754.0,3753.9,1.8932002]
[1641227593311,15.95046062,3754.0,3753.9,0.00454739]
[1641227594255,18.35046062,3754.0,3753.9,0.00454739]
[1641227597158,2.71046062,3754.0,3753.9,0.00454739]
[1641227597356,2.41046062,3754.0,3753.9,0.00454739]
[1641227597560,2.41046062,3754.0,3753.9,0.0081494]
[1641227600208,2.6632,3754.1,3753.9,9.0271494]
[1641227600405,0.04019,3754.7,3754.1,0.6658067]
[1641227600605,0.04019,3754.7,3754.3,0.66576]
[1641227600809,0.04019,3754.7,3754.4,0.319]
[1641227601005,0.04019,3754.7,3754.4,0.32070527]
[1641227602058,0.04019,3754.7,3754.4,3.42070527]
[1641227602260,0.04019,3754.7,3754.4,10.50723705]
[1641227602458,0.04019,3754.7,3754.4,7.40723705]
[1641227603058,0.04019,3754.7,3754.4,7.70723705]
[1641227603658,1.01235,3754.8,3754.6,8.7]
[1641227603863,1.01235,3754.8,3754.7,17.58648023]
[1641227604059,0.06393054,3755.4,3754.8,8.7]
[1641227604264,6.03393054,3756.0,3755.0,8.25]
[1641227604466,0.00341054,3755.3,3755.1,6.31066]
[1641227604664,6.03393054,3756.0,3755.3,4.15]
[1641227604862,6.03393054,3756.0,3755.5,0.66554]
[1641227605064,0.00341054,3755.9,3755.7,1.331071]
[1641227605264,0.00341054,3755.9,3755.8,5.6595]
[1641227605501,5.98393054,3756.0,3755.8,5.6595]
[1641227606504,1.35573013,3756.4,3755.8,5.6595]
[1641227606702,2.95889195,3757.0,3755.8,5.6595]
[1641227606703,0.66557,3757.0,3756.1,0.66556]
[1641227606904,0.3,3756.4,3756.1,0.66556]
[1641227607106,0.00909478,3756.9,3756.2,5.3399]
[1641227607405,0.00852636,3756.8,3756.2,5.3399]
[1641227607804,1.30227631,3756.7,3756.2,5.3399]
[1641227608002,1.30227631,3756.7,3756.4,0.6655155]
[1641227608003,1.60227631,3756.7,3756.4,0.6655155]
[1641227608205,0.00738951,3756.6,3756.4,0.6655155]
[1641227608404,0.00738951,3756.6,3756.5,5.3395]
[1641227608605,1.59431838,3756.7,3756.5,5.3395]
[1641227609662,16.94,3757.1,3756.5,5.3395]
[1641227609862,15.64,3756.9,3756.5,0.1595364]
[1641227610065,15.64,3756.9,3756.5,0.12756557]
[1641227610066,8.71251576,3756.6,3756.5,0.12756557]
[1641227610265,9.01251576,3756.6,3756.5,0.12756557]
[1641227610458,10.01990527,3756.6,3756.5,0.12756557]
[1641227610661,18.27242575,3756.6,3756.5,0.12756557]
[1641227610862,17.97242575,3756.6,3756.5,0.12756557]
[1641227611065,18.97242575,3756.6,3756.5,0.12756557]
[1641227611363,17.97242575,3756.6,3756.5,0.12756557]
[1641227611565,19.8170388,3756.6,3756.5,0.12756557]
[1641227612565,18.8170388,3756.6,3756.5,0.12756557]
[1641227613602,18.1170388,3756.6,3756.5,0.12756557]
[1641227613805,12.89325,3756.5,3755.3,0.91451439]
[1641227614102,12.89325,3756.5,3755.4,0.00682108]
[1641227614103,0.3,3756.4,3755.4,0.00682108]
[1641227614307,15.25990527,3756.3,3755.4,0.00682108]
[1641227614708,1.0,3756.0,3755.4,0.11218008]
[1641227614905,0.66592,3755.6,3755.4,0.105359]
[1641227615106,16.92582527,3755.6,3755.5,0.00625266]
[1641227615506,17.52582527,3755.6,3755.5,0.00625266]
[1641227615706,16.85990527,3755.6,3755.5,0.00625266]
[1641227615905,16.55990527,3755.6,3755.5,0.00625266]
[1641227617153,15.55990527,3755.6,3755.5,0.00625266]
[1641227617955,8.7,3755.5,3754.2,1.3317298]
[1641227618156,8.7,3755.5,3754.0,3.60969769]
[1641227618157,0.66599,3754.8,3754.0,3.60969769]
[1641227618359,0.66599,3754.8,3754.3,0.00682108]
[1641227618561,16.59184527,3755.2,3754.3,0.00682108]
[1641227618562,0.3,3754.9,3754.3,0.00682108]
[1641227618759,0.3,3754.9,3754.2,0.6659494]
[1641227618960,0.3,3755.0,3754.2,0.6659494]
[1641227619160,16.64,3755.1,3754.2,0.6659494]
[1641227619363,1.293872,3754.3,3754.2,0.6659494]
[1641227619762,1.293872,3754.3,3754.2,0.6733389]
[1641227621114,0.3,3754.4,3754.2,0.6733389]
[1641227621412,16.30595,3755.0,3754.2,0.6733389]
[1641227621413,0.66592,3754.9,3754.2,0.6733389]
[1641227621811,0.66592,3754.9,3754.3,0.6659127]
[1641227622215,0.61592,3754.9,3754.4,0.00625266]
[1641227622618,1.2898178,3754.8,3754.4,0.00625266]
[1641227622815,1.9557678,3754.8,3754.4,0.00625266]
[1641227623017,2.2557678,3754.8,3754.4,0.00625266]
[1641227623216,1.0,3754.7,3754.2,0.0073895]
[1641227623816,0.66596,3754.6,3754.2,0.0073895]
[1641227625263,0.3,3754.8,3754.2,0.0073895]
[1641227625462,0.66587,3755.2,3754.2,0.0073895]
[1641227625659,1.0,3755.6,3754.5,0.66582]
[1641227626060,1.0,3755.6,3754.6,0.00511581]
[1641227626761,1.27850664,3755.3,3754.6,1.33934695]
[1641227626962,0.3,3755.3,3754.6,1.33934695]
[1641227627161,0.66582,3755.4,3754.7,0.67034739]
[1641227627363,0.66582,3755.4,3754.9,0.6658164]
[1641227627765,0.66582,3755.4,3755.0,0.00284212]
[1641227628015,2.29191112,3756.1,3755.0,0.00284212]
[1641227628016,1.62609112,3756.1,3755.4,1.16993678]
[1641227628210,0.66573,3756.0,3755.0,0.00284212]
[1641227628410,0.00113685,3755.7,3755.3,1.3313719]
[1641227630415,0.00113685,3755.7,3755.4,0.00268534]
[1641227630612,0.00113685,3755.7,3755.5,0.6657214]
[1641227631011,1.38061596,3755.7,3755.5,0.6657214]
[1641227631870,0.30113685,3755.7,3755.6,1.48101341]
[1641227632073,0.00113685,3755.7,3755.6,1.48101341]
[1641227632275,0.00113685,3755.7,3755.4,0.11072968]
[1641227632477,0.61689685,3755.8,3755.4,0.11072968]
[1641227632778,0.61689685,3755.8,3755.5,0.00113685]
[1641227632978,0.56689685,3755.8,3755.5,0.00113685]
[1641227633476,1.13265168,3755.6,3755.5,0.00113685]
[1641227633676,0.56689685,3755.8,3755.5,0.00113685]
[1641227633877,0.3,3755.9,3755.5,0.00113685]
[1641227634077,0.96571,3756.1,3755.5,0.00113685]
[1641227634476,0.00170527,3756.0,3755.5,0.66684735]
[1641227634878,0.00113684,3755.9,3755.5,0.66684735]
[1641227635406,0.00113684,3755.9,3755.5,0.77220635]
[1641227635710,0.00113684,3755.9,3755.6,1.02783506]
[1641227637507,0.00113684,3755.9,3755.7,1.46050573]
[1641227637710,0.00113684,3755.9,3755.7,2.12613573]
[1641227638311,0.00113684,3755.9,3755.7,2.12616693]
[1641227639466,0.00113684,3755.9,3755.8,1.46050573]
[1641227641466,0.00113684,3755.9,3755.8,1.46314374]
[1641227641666,0.00113684,3755.9,3755.8,0.00263801]
[1641227642068,15.64113684,3755.9,3755.8,0.00263801]
[1641227642467,16.64113684,3755.9,3755.8,0.00263801]
[1641227642665,16.64113684,3755.9,3755.6,1.46050573]
[1641227642666,8.7,3755.8,3755.5,0.10649585]
[1641227642924,0.66592,3755.3,3754.7,1.80487752]
[1641227643124,15.64,3755.2,3754.7,1.80487752]
[1641227643330,15.64,3755.2,3754.8,0.00397896]
[1641227643531,15.94,3755.2,3754.8,0.00397896]
[1641227643728,0.66596,3755.0,3754.8,0.00397896]
[1641227643929,1.33191,3755.0,3754.8,0.00397896]
[1641227644228,1.33191,3755.0,3754.4,0.00625266]
[1641227645029,1.33191,3755.0,3754.4,0.6659096]
[1641227645431,1.33191,3755.0,3754.5,0.00568423]
[1641227645830,0.66595,3755.0,3754.5,0.00568423]
[1641227646034,0.66595,3755.0,3754.5,0.11104323]
[1641227646433,0.66595,3755.0,3754.6,0.00511581]
[1641227646965,0.66595,3755.0,3754.7,0.6658707]
[1641227647168,0.3,3755.2,3754.7,0.6658707]
[1641227647169,0.96585,3755.2,3754.7,0.6658707]
[1641227647366,0.66585,3755.2,3754.7,0.6658707]
[1641227647568,0.66585,3755.2,3754.6,0.00511581]
[1641227647766,0.00113685,3755.7,3754.6,0.00511581]
[1641227647966,0.00113685,3755.7,3755.4,1.16531715]
[1641227648169,2.1152967,3755.7,3755.4,1.16531715]
[1641227648768,2.1152967,3755.7,3755.5,0.6656898]
[1641227648966,2.1152967,3755.7,3755.6,5.3254]
[1641227649370,0.00113685,3755.7,3755.6,5.3254]
[1641227652411,0.00113685,3755.7,3755.6,5.3301488]
[1641227655201,0.00113685,3755.7,3755.6,6.3301488]
[1641227655799,0.00113685,3755.7,3755.6,4.3341488]
[1641227658413,0.01159271,3755.7,3755.6,4.3341488]
[1641227658615,1.78739972,3755.9,3755.6,3.3341488]
[1641227658817,15.64,3755.8,3755.6,3.3341488]
[1641227659317,19.44,3755.7,3755.6,3.3341488]
[1641227659518,21.55415985,3755.7,3755.6,3.3341488]
[1641227660322,19.05415985,3755.7,3755.6,3.3341488]
[1641227662859,18.05415985,3755.7,3755.6,3.3341488]
[1641227663362,19.51954673,3755.7,3755.6,3.3341488]
[1641227664568,18.40538688,3755.7,3755.6,4.73310663]
[1641227665413,18.40538688,3755.7,3755.6,3.3341488]
[1641227665614,20.53140056,3755.7,3755.6,2.3341488]
[1641227666021,20.53140056,3755.7,3754.6,0.00511581]
[1641227666022,6.95719542,3754.7,3754.6,0.00511581]
[1641227666221,22.61017929,3754.7,3754.6,0.00511581]
[1641227666419,23.21017929,3754.7,3754.6,0.00625266]
[1641227666619,24.21017929,3754.7,3754.6,0.00625266]
[1641227666818,0.71227508,3753.6,3752.3,0.66619]
[1641227667027,0.71227508,3753.6,3751.8,2.46200774]
[1641227667028,1.40407747,3753.5,3753.1,5.3286]
[1641227667219,18.31031747,3753.5,3753.4,0.00682108]
[1641227667421,18.31031747,3753.5,3753.1,5.3286]
[1641227667422,6.21632,3753.4,3753.1,5.3286]
[1641227667619,7.21632,3753.4,3753.2,0.00113685]
[1641227667820,5.5,3753.2,3753.1,5.27673685]
[1641227668020,15.64,3753.3,3753.1,5.27673685]
[1641227668221,7.74322525,3753.2,3753.1,5.27673685]
[1641227668421,3.79322525,3753.2,3753.1,5.27673685]
[1641227668922,4.79322525,3753.2,3753.1,5.27673685]
[1641227669167,2.3,3753.2,3753.1,5.27673685]
[1641227669374,4.73877886,3753.2,3753.1,5.27673685]
[1641227669778,4.7406427,3753.2,3753.1,5.27673685]
[1641227670375,20.3806427,3753.2,3753.1,5.27673685]
[1641227670576,16.94,3753.2,3753.1,5.38209485]
[1641227670775,17.94,3753.2,3753.1,5.38209485]
[1641227670977,16.94,3753.2,3753.1,5.38209485]
[1641227671178,0.3,3753.2,3753.1,5.38209485]
[1641227671381,0.96634,3753.3,3753.1,5.38209485]
[1641227672477,0.3,3753.3,3753.1,5.38209485]
[1641227672676,0.66632,3753.4,3753.1,5.38209485]
[1641227673120,0.62099,3753.5,3753.1,5.38209485]
[1641227673315,0.71227508,3753.6,3753.1,5.38209485]
[1641227673516,0.00113685,3753.4,3753.1,5.38209485]
[1641227673717,16.29892788,3753.9,3753.1,5.38209485]
[1641227673917,6.46033008,3754.1,3753.1,5.38209485]
[1641227673918,6.46033008,3754.1,3753.1,4.38209485]
[1641227673919,0.66611,3754.0,3753.1,4.38209485]
[1641227674118,0.00170527,3753.7,3753.2,0.00187839]
[1641227674327,0.00170527,3753.7,3753.4,0.66598]
[1641227674521,0.00113684,3753.6,3753.4,0.66598]
[1641227674922,0.00341054,3754.0,3753.6,0.6659726]
[1641227675325,0.00284211,3753.9,3753.6,0.6659726]
[1641227675724,0.00227369,3753.8,3753.6,0.6659726]
[1641227676124,0.00341054,3754.0,3753.6,0.6659726]
[1641227676525,0.00284211,3753.9,3753.6,0.6659726]
[1641227676968,6.12,3754.1,3753.6,0.6659726]
[1641227676969,0.00227369,3753.8,3753.6,0.6659726]
[1641227677170,0.00227369,3753.8,3753.5,1.12821172]
[1641227677472,0.00341054,3754.0,3753.5,1.12821172]
[1641227677868,0.00284211,3753.9,3753.5,1.12821172]
[1641227678168,6.42,3754.1,3753.5,1.12821172]
[1641227678169,0.00227369,3753.8,3753.5,1.07821172]
[1641227678568,2.08949288,3754.0,3753.5,1.07821172]
[1641227678971,0.00284211,3753.9,3753.5,1.07821172]
[1641227679376,0.00227369,3753.8,3753.6,0.6659829]
[1641227679776,0.00284211,3753.9,3753.6,0.6659829]
[1641227680179,0.00227369,3753.8,3753.6,0.6659829]
[1641227680618,0.00284211,3753.9,3753.6,0.6659829]
[1641227681015,0.00227369,3753.8,3753.6,0.6659829]
[1641227681216,0.00227369,3753.8,3753.6,1.3319329]
[1641227681416,0.00568423,3754.4,3753.6,1.3319329]
[1641227681615,0.00568423,3754.4,3754.2,1.17936714]
[1641227681815,0.00511581,3754.3,3754.2,1.17936714]
[1641227682015,0.00511581,3754.3,3753.6,0.105358]
[1641227682315,0.11161166,3754.5,3753.6,0.105358]
[1641227682316,0.00454739,3754.2,3753.6,0.105358]
[1641227682721,0.00397896,3754.1,3753.6,0.105358]
[1641227683121,2.09871972,3754.0,3753.9,1.24600366]
[1641227683321,2.09871972,3754.0,3753.6,0.105358]
[1641227683521,2.39871972,3754.0,3753.6,0.105358]
[1641227683724,0.00284211,3753.9,3753.6,0.105358]
[1641227684166,0.00227369,3753.8,3753.6,0.105358]
[1641227684566,0.00284211,3753.9,3753.7,1.23660722]
[1641227684967,0.00227369,3753.8,3753.7,1.23660722]
[1641227685567,0.00227369,3753.8,3753.7,1.23843819]
[1641227689529,0.00227369,3753.8,3753.7,0.00183097]
[1641227691131,0.00227369,3753.8,3753.7,2.00183097]
[1641227692984,0.30037369,3754.2,3753.7,0.00183097]
[1641227693288,0.00113685,3754.0,3753.7,0.00183097]
[1641227694685,3.31456427,3754.0,3753.7,0.00183097]
[1641227694883,4.31456427,3754.0,3753.7,0.00183097]
[1641227695084,4.98072427,3754.0,3753.7,0.00183097]
[1641227695524,2.63339685,3754.0,3753.7,0.00183097]
[1641227695725,1.63339685,3754.0,3753.7,0.00183097]
[1641227696126,3.96472419,3754.0,3753.7,0.00183097]
[1641227696328,3.96470854,3754.0,3753.7,0.00183097]
[1641227696731,15.64,3753.9,3753.7,0.00183097]
[1641227696929,2.3719476,3753.8,3753.7,0.00183097]
[1641227697431,18.3119476,3753.8,3753.7,0.00183097]
[1641227697631,16.94,3753.8,3753.7,0.00183097]
[1641227698033,8.7,3753.7,3753.1,4.27673685]
[1641227698231,0.66633,3753.4,3753.1,4.27673685]
[1641227698434,16.30633,3753.4,3753.2,0.00341054]
[1641227699382,15.64,3753.3,3753.2,0.00341054]
[1641227699581,1.33266,3753.4,3753.2,0.00341054]
[1641227700384,0.66633,3753.4,3753.2,0.00341054]
[1641227708279,0.66633,3753.4,3753.3,0.00168667]
[1641227708684,0.66633,3753.4,3753.3,0.00452879]
[1641227709083,0.67679224,3753.4,3753.3,0.00452879]
[1641227712521,0.67679224,3753.4,3753.3,0.00988779]
[1641227715890,1.24719224,3753.4,3753.3,0.00988779]
[1641227716491,0.58086224,3753.4,3753.3,0.00988779]